[Event "*** Titled Tuesday Blitz"]
[Site "Chess.com"]
[Date "2021.03.30"]
[Round "9"]
[White "northridgehawk"]
[Black "Larciano"]
[Result "1-0"]
[WhiteElo "2306"]
[BlackElo "1952"]
[TimeControl "180+1"]
[EndTime "11:46:47 PDT"]
[Termination "northridgehawk won by resignation"]

1. e4 {[%clk 0:02:58.2]} 1... e5 {[%clk 0:02:59.8]} 2. Nf3 {[%clk 0:02:54.8]}
2... Nc6 {[%clk 0:02:59.8]} 3. g3 {[%clk 0:02:54.8]} 3... Nf6 {[%clk 0:02:56.2]}
4. d3 {[%clk 0:02:54.8]} 4... d5 {[%clk 0:02:56.3]} 5. exd5 {[%clk 0:02:54.4]}
5... Nxd5 {[%clk 0:02:56.3]} 6. Bg2 {[%clk 0:02:54.9]} 6... Be7 {[%clk
0:02:46.6]} 7. O-O {[%clk 0:02:53.1]} 7... O-O {[%clk 0:02:46.3]} 8. Nc3 {[%clk
0:02:53.1]} 8... Be6 {[%clk 0:02:44.5]} 9. Re1 {[%clk 0:02:53.1]} 9... f6 {[%clk
0:02:44.3]} 10. Bd2 {[%clk 0:02:49.1]} 10... Qd7 {[%clk 0:02:39.2]} 11. Ne2
{[%clk 0:02:43.4]} 11... Rad8 {[%clk 0:02:37.2]} 12. a4 {[%clk 0:02:40.4]} 12...
a5 {[%clk 0:02:32.2]} 13. c3 {[%clk 0:02:28.8]} 13... Bh3 {[%clk 0:02:27.5]} 14.
Bh1 {[%clk 0:02:26.7]} 14... Rfe8 {[%clk 0:02:27.2]} 15. d4 {[%clk 0:02:26.3]}
15... exd4 {[%clk 0:02:22.6]} 16. Nfxd4 {[%clk 0:02:27.2]} 16... Nxd4 {[%clk
0:02:21.3]} 17. Nxd4 {[%clk 0:02:28.1]} 17... Bc5 {[%clk 0:02:10.2]} 18. Qb3
{[%clk 0:02:21.8]} 18... c6 {[%clk 0:02:04.2]} 19. Qc4 {[%clk 0:02:09.1]} 19...
Bb6 {[%clk 0:01:55.3]} 20. Rad1 {[%clk 0:02:04.3]} 20... Kh8 {[%clk 0:01:53.5]}
21. Bc1 {[%clk 0:02:02.3]} 21... h6 {[%clk 0:01:49.2]} 22. Qd3 {[%clk
0:02:00.5]} 22... Bg4 {[%clk 0:01:39.5]} 23. Bf3 {[%clk 0:01:58.3]} 23... Bxd4
{[%clk 0:01:29.1]} 24. cxd4 {[%clk 0:01:53.2]} 24... Bxf3 {[%clk 0:01:25.5]} 25.
Qxf3 {[%clk 0:01:54.1]} 25... Rxe1+ {[%clk 0:01:23.7]} 26. Rxe1 {[%clk
0:01:54.2]} 26... Re8 {[%clk 0:01:24.1]} 27. Re4 {[%clk 0:01:44.4]} 27... Re7
{[%clk 0:01:05.5]} 28. Qe2 {[%clk 0:01:44.4]} 28... Qe8 {[%clk 0:00:58]} 29. f3
{[%clk 0:01:43.3]} 29... Kg8 {[%clk 0:00:56.6]} 30. Bd2 {[%clk 0:01:43.4]} 30...
b6 {[%clk 0:00:53.9]} 31. Kf2 {[%clk 0:01:43.4]} 31... Kf7 {[%clk 0:00:53.7]}
32. Bc3 {[%clk 0:01:40]} 32... g6 {[%clk 0:00:42.9]} 33. h4 {[%clk 0:01:38.4]}
33... h5 {[%clk 0:00:42.7]} 34. Qd3 {[%clk 0:01:33.5]} 34... f5 {[%clk 0:00:42]}
35. Re5 {[%clk 0:01:33.6]} 35... Re6 {[%clk 0:00:40.5]} 36. f4 {[%clk
0:01:31.2]} 36... Nf6 {[%clk 0:00:37.6]} 37. Qc4 {[%clk 0:01:31.4]} 37... Ne4+
{[%clk 0:00:35.5]} 38. Kf3 {[%clk 0:01:30.2]} 38... Qd7 {[%clk 0:00:27.3]} 39.
b4 {[%clk 0:01:26.9]} 39... axb4 {[%clk 0:00:26.7]} 40. Bxb4 {[%clk 0:01:26.8]}
40... c5 {[%clk 0:00:24.9]} 41. Qxe6+ {[%clk 0:01:24.3]} 41... Qxe6 {[%clk
0:00:24.3]} 42. Rxe6 {[%clk 0:01:25.2]} 42... Kxe6 {[%clk 0:00:24.4]} 43. dxc5
{[%clk 0:01:26.1]} 43... bxc5 {[%clk 0:00:22.6]} 44. Be1 {[%clk 0:01:24.9]}
44... Nd6 {[%clk 0:00:20.8]} 45. Ke3 {[%clk 0:01:24.4]} 45... Kd5 {[%clk
0:00:20.3]} 46. Kd3 {[%clk 0:01:24.6]} 46... c4+ {[%clk 0:00:19.3]} 47. Kc3
{[%clk 0:01:24.9]} 47... Kc5 {[%clk 0:00:19.5]} 48. Bf2+ {[%clk 0:01:24.3]}
48... Kc6 {[%clk 0:00:19.5]} 49. Kd4 {[%clk 0:01:24]} 49... Ne4 {[%clk
0:00:19.4]} 50. Be1 {[%clk 0:01:24.3]} 50... c3 {[%clk 0:00:19.5]} 51. Bxc3
{[%clk 0:01:19.6]} 51... Nxg3 {[%clk 0:00:18.4]} 52. Ke5 {[%clk 0:01:20.4]}
52... Ne2 {[%clk 0:00:16.3]} 53. Bd2 {[%clk 0:01:19.4]} 53... Kb6 {[%clk
0:00:15.3]} 54. Kf6 {[%clk 0:01:19.8]} 54... Nd4 {[%clk 0:00:12.7]} 55. Be3
{[%clk 0:01:14.5]} 55... Ka6 {[%clk 0:00:11.8]} 56. Bxd4 {[%clk 0:01:13.9]} 1-0

[Event "*** Titled Tuesday Blitz"]
[Site "Chess.com"]
[Date "2021.03.30"]
[Round "9"]
[White "Irina_Baraeva"]
[Black "reniite"]
[Result "1-0"]
[WhiteElo "2312"]
[BlackElo "2007"]
[TimeControl "180+1"]
[EndTime "11:46:49 PDT"]
[Termination "Irina_Baraeva won on time"]

1. d4 {[%clk 0:03:00.9]} 1... Nf6 {[%clk 0:02:56.2]} 2. c4 {[%clk 0:03:00.7]}
2... e6 {[%clk 0:02:56.6]} 3. Nf3 {[%clk 0:03:00.2]} 3... b6 {[%clk 0:02:53.6]}
4. g3 {[%clk 0:02:59.6]} 4... Bb7 {[%clk 0:02:53.5]} 5. Bg2 {[%clk 0:02:59.8]}
5... Be7 {[%clk 0:02:52.8]} 6. O-O {[%clk 0:02:59.6]} 6... O-O {[%clk
0:02:43.8]} 7. Nc3 {[%clk 0:02:58.7]} 7... d5 {[%clk 0:02:43.1]} 8. Ne5 {[%clk
0:02:40.3]} 8... Qc8 {[%clk 0:02:25.6]} 9. cxd5 {[%clk 0:02:33.2]} 9... Nxd5
{[%clk 0:02:10.7]} 10. e4 {[%clk 0:02:31.5]} 10... Nxc3 {[%clk 0:02:07.4]} 11.
bxc3 {[%clk 0:02:31.4]} 11... c5 {[%clk 0:02:07.8]} 12. Bb2 {[%clk 0:02:29.4]}
12... Nd7 {[%clk 0:01:46.6]} 13. f4 {[%clk 0:02:07.7]} 13... f6 {[%clk
0:01:27.6]} 14. Nd3 {[%clk 0:01:58.5]} 14... c4 {[%clk 0:00:56.4]} 15. Ne1
{[%clk 0:01:49.1]} 15... b5 {[%clk 0:00:39.8]} 16. Nc2 {[%clk 0:01:46.9]} 16...
a5 {[%clk 0:00:39.6]} 17. a3 {[%clk 0:01:39.2]} 17... Nb6 {[%clk 0:00:36.7]} 18.
Ne3 {[%clk 0:01:28.4]} 18... Na4 {[%clk 0:00:30.7]} 19. Qc2 {[%clk 0:01:28.1]}
19... Qc7 {[%clk 0:00:22.7]} 20. f5 {[%clk 0:01:23.6]} 20... exf5 {[%clk
0:00:18.5]} 21. Nxf5 {[%clk 0:01:23.4]} 21... Bd6 {[%clk 0:00:19.1]} 22. Rae1
{[%clk 0:01:07.2]} 22... Rae8 {[%clk 0:00:15.3]} 23. Bc1 {[%clk 0:01:02.8]}
23... Be7 {[%clk 0:00:14.2]} 24. e5 {[%clk 0:00:57.3]} 24... fxe5 {[%clk
0:00:13.5]} 25. Rxe5 {[%clk 0:00:56.6]} 25... Bf6 {[%clk 0:00:13.7]} 26. Rxb5
{[%clk 0:00:51.7]} 26... Bxg2 {[%clk 0:00:13]} 27. Qxg2 {[%clk 0:00:49.9]} 27...
Bxd4+ {[%clk 0:00:12.2]} 28. cxd4 {[%clk 0:00:44.9]} 28... Nc3 {[%clk
0:00:11.2]} 29. Rc5 {[%clk 0:00:41.3]} 29... Qd7 {[%clk 0:00:08.7]} 30. g4
{[%clk 0:00:29.5]} 30... Ne2+ {[%clk 0:00:06.2]} 31. Kh1 {[%clk 0:00:27.5]}
31... Nxd4 {[%clk 0:00:05.8]} 32. Rd5 {[%clk 0:00:24.7]} 32... Nxf5 {[%clk
0:00:04.9]} 33. Rxd7 {[%clk 0:00:23.4]} 33... Ne3 {[%clk 0:00:05.2]} 34. Bxe3
{[%clk 0:00:22.8]} 34... Rxf1+ {[%clk 0:00:05.4]} 35. Qxf1 {[%clk 0:00:22.5]}
1-0

[Event "*** Titled Tuesday Blitz"]
[Site "Chess.com"]
[Date "2021.03.30"]
[Round "9"]
[White "Tpros"]
[Black "TioCridineno"]
[Result "1-0"]
[WhiteElo "2455"]
[BlackElo "2277"]
[TimeControl "180+1"]
[EndTime "11:46:51 PDT"]
[Termination "Tpros won on time"]

1. b3 {[%clk 0:02:57.9]} 1... d5 {[%clk 0:02:59.3]} 2. e3 {[%clk 0:02:57.5]}
2... Nc6 {[%clk 0:02:58.2]} 3. f4 {[%clk 0:02:55.8]} 3... e5 {[%clk 0:02:57.1]}
4. fxe5 {[%clk 0:02:53.8]} 4... Nxe5 {[%clk 0:02:57.1]} 5. Nf3 {[%clk
0:02:51.1]} 5... Bg4 {[%clk 0:02:56.3]} 6. Be2 {[%clk 0:02:50]} 6... Bxf3 {[%clk
0:02:55.7]} 7. Bxf3 {[%clk 0:02:49]} 7... Nf6 {[%clk 0:02:55.3]} 8. O-O {[%clk
0:02:46.8]} 8... c6 {[%clk 0:02:54.2]} 9. Nc3 {[%clk 0:02:45.5]} 9... Bd6 {[%clk
0:02:53.4]} 10. Bb2 {[%clk 0:02:42.7]} 10... O-O {[%clk 0:02:52.9]} 11. a4
{[%clk 0:02:28.5]} 11... Qc7 {[%clk 0:02:51.2]} 12. g3 {[%clk 0:02:23.7]} 12...
Rfe8 {[%clk 0:02:48.7]} 13. Ne2 {[%clk 0:02:19.9]} 13... Rad8 {[%clk 0:02:45.6]}
14. Nd4 {[%clk 0:02:17.4]} 14... Qd7 {[%clk 0:02:31]} 15. Bg2 {[%clk 0:02:14.3]}
15... Ng6 {[%clk 0:01:37.8]} 16. a5 {[%clk 0:02:10.7]} 16... a6 {[%clk
0:01:35.7]} 17. Ra4 {[%clk 0:02:01.3]} 17... Be5 {[%clk 0:01:34.2]} 18. Qa1
{[%clk 0:01:58.4]} 18... h5 {[%clk 0:01:01.3]} 19. Nf5 {[%clk 0:01:35.7]} 19...
Bxb2 {[%clk 0:00:59.4]} 20. Qxb2 {[%clk 0:01:36.6]} 20... Ne5 {[%clk 0:00:44]}
21. Raf4 {[%clk 0:01:26.8]} 21... Qc7 {[%clk 0:00:19]} 22. Nxg7 {[%clk
0:01:23.9]} 22... Kxg7 {[%clk 0:00:18.5]} 23. Rxf6 {[%clk 0:01:24]} 23... h4
{[%clk 0:00:18.1]} 24. Rxf7+ {[%clk 0:01:17.9]} 24... Qxf7 {[%clk 0:00:16.1]}
25. Rxf7+ {[%clk 0:01:18.4]} 25... Kxf7 {[%clk 0:00:16.5]} 26. Qd4 {[%clk
0:01:13.5]} 26... hxg3 {[%clk 0:00:16.3]} 27. hxg3 {[%clk 0:01:05.4]} 27... Rd6
{[%clk 0:00:15.5]} 28. c4 {[%clk 0:01:01.6]} 28... Ree6 {[%clk 0:00:06.1]} 29.
cxd5 {[%clk 0:00:53]} 29... Re7 {[%clk 0:00:05.4]} 30. Qc5 {[%clk 0:00:36.3]}
30... Rg6 {[%clk 0:00:01.1]} 31. d6 {[%clk 0:00:35.9]} 31... Ree6 {[%clk
0:00:01.1]} 32. d4 {[%clk 0:00:14.2]} 1-0

[Event "*** Titled Tuesday Blitz"]
[Site "Chess.com"]
[Date "2021.03.30"]
[Round "9"]
[White "MasterKroket"]
[Black "Nikolaj_6"]
[Result "0-1"]
[WhiteElo "2531"]
[BlackElo "2659"]
[TimeControl "180+1"]
[EndTime "11:46:52 PDT"]
[Termination "Nikolaj_6 won by resignation"]

1. d4 {[%clk 0:03:00.9]} 1... Nf6 {[%clk 0:02:59.6]} 2. c4 {[%clk 0:03:00]} 2...
e6 {[%clk 0:02:59.9]} 3. Nf3 {[%clk 0:03:00.3]} 3... c5 {[%clk 0:02:55.9]} 4. d5
{[%clk 0:02:58.2]} 4... d6 {[%clk 0:02:56]} 5. Nc3 {[%clk 0:02:58.1]} 5... exd5
{[%clk 0:02:56.3]} 6. cxd5 {[%clk 0:02:57.6]} 6... g6 {[%clk 0:02:56.5]} 7. e4
{[%clk 0:02:57.9]} 7... a6 {[%clk 0:02:55.9]} 8. a4 {[%clk 0:02:57.6]} 8... Bg4
{[%clk 0:02:56.4]} 9. Be2 {[%clk 0:02:57.3]} 9... Bg7 {[%clk 0:02:55.6]} 10. O-O
{[%clk 0:02:57.3]} 10... O-O {[%clk 0:02:55.8]} 11. Be3 {[%clk 0:02:46.6]} 11...
Bxf3 {[%clk 0:02:53.7]} 12. Bxf3 {[%clk 0:02:46.7]} 12... Nbd7 {[%clk
0:02:53.1]} 13. Be2 {[%clk 0:02:45.2]} 13... Re8 {[%clk 0:02:50.9]} 14. Bd3
{[%clk 0:02:43.6]} 14... Rc8 {[%clk 0:02:50.1]} 15. f4 {[%clk 0:02:37.7]} 15...
c4 {[%clk 0:02:47.6]} 16. Bc2 {[%clk 0:02:37.8]} 16... Nc5 {[%clk 0:02:43]} 17.
Qf3 {[%clk 0:02:36]} 17... Nfxe4 {[%clk 0:02:15.3]} 18. Nxe4 {[%clk 0:02:28.1]}
18... Nxe4 {[%clk 0:02:14.3]} 19. Bxe4 {[%clk 0:02:27.6]} 19... Qe7 {[%clk
0:02:14.3]} 20. Bxg6 {[%clk 0:01:57.2]} 20... hxg6 {[%clk 0:02:08.6]} 21. Bc1
{[%clk 0:01:56.6]} 21... Bd4+ {[%clk 0:02:04]} 22. Kh1 {[%clk 0:01:56.1]} 22...
Qe2 {[%clk 0:02:02.6]} 23. Ra3 {[%clk 0:01:49.8]} 23... c3 {[%clk 0:01:37.2]}
24. bxc3 {[%clk 0:01:43.7]} 24... Qxf3 {[%clk 0:01:36.4]} 25. gxf3 {[%clk
0:01:41.5]} 25... Rxc3 {[%clk 0:01:32.9]} 26. Bb2 {[%clk 0:01:35.6]} 26... Rxa3
{[%clk 0:01:30.5]} 27. Bxa3 {[%clk 0:01:36.5]} 27... Bc5 {[%clk 0:01:15.5]} 28.
Bxc5 {[%clk 0:01:36]} 28... dxc5 {[%clk 0:01:16.4]} 29. Rc1 {[%clk 0:01:33.8]}
29... Rc8 {[%clk 0:01:16]} 30. d6 {[%clk 0:01:17.2]} 30... Kf8 {[%clk
0:01:14.9]} 31. Rb1 {[%clk 0:01:14.6]} 31... Rd8 {[%clk 0:01:11.8]} 32. Rxb7
{[%clk 0:01:13.9]} 32... Rxd6 {[%clk 0:01:12]} 33. Rc7 {[%clk 0:01:12]} 33...
Rd4 {[%clk 0:01:11.4]} 34. a5 {[%clk 0:01:10.9]} 34... Rxf4 {[%clk 0:00:56.4]}
35. Kg2 {[%clk 0:01:05.6]} 35... Rf5 {[%clk 0:00:53.7]} 36. Rc6 {[%clk
0:01:05.6]} 36... c4 {[%clk 0:00:52.2]} 37. Rxa6 {[%clk 0:01:05.8]} 37... Rc5
{[%clk 0:00:51.1]} 38. Rb6 {[%clk 0:00:59.5]} 38... Rxa5 {[%clk 0:00:47.5]} 39.
Rc6 {[%clk 0:01:00.1]} 39... Ra4 {[%clk 0:00:47.5]} 40. Kg3 {[%clk 0:00:59.5]}
40... Ke7 {[%clk 0:00:44.2]} 41. h4 {[%clk 0:00:57.2]} 41... Kd7 {[%clk
0:00:44.4]} 42. Rf6 {[%clk 0:00:57.1]} 42... c3 {[%clk 0:00:42.8]} 43. Rxf7+
{[%clk 0:00:56.8]} 43... Kd6 {[%clk 0:00:42.3]} 44. Rf6+ {[%clk 0:00:50.2]}
44... Kd5 {[%clk 0:00:42.1]} 45. Rf8 {[%clk 0:00:48.6]} 45... Rc4 {[%clk
0:00:41.1]} 46. Rd8+ {[%clk 0:00:49.2]} 46... Ke6 {[%clk 0:00:40.4]} 47. Rd1
{[%clk 0:00:49.2]} 47... c2 {[%clk 0:00:40.7]} 48. Rc1 {[%clk 0:00:49.9]} 48...
Kf5 {[%clk 0:00:40.2]} 49. Kf2 {[%clk 0:00:47.4]} 49... Rxh4 {[%clk 0:00:38.7]}
50. Ke3 {[%clk 0:00:45]} 50... Rc4 {[%clk 0:00:33.3]} 51. f4 {[%clk 0:00:34.7]}
51... Rc6 {[%clk 0:00:31.1]} 0-1

[Event "*** Titled Tuesday Blitz"]
[Site "Chess.com"]
[Date "2021.03.30"]
[Round "9"]
[White "djano"]
[Black "KeithArkell"]
[Result "1-0"]
[WhiteElo "2447"]
[BlackElo "2587"]
[TimeControl "180+1"]
[EndTime "11:46:52 PDT"]
[Termination "djano won on time"]

1. e4 {[%clk 0:03:00.9]} 1... c6 {[%clk 0:03:00]} 2. d4 {[%clk 0:03:00.8]} 2...
d5 {[%clk 0:03:00.1]} 3. exd5 {[%clk 0:03:01.7]} 3... cxd5 {[%clk 0:03:00.3]} 4.
Bd3 {[%clk 0:03:02.1]} 4... Nf6 {[%clk 0:03:00.4]} 5. c3 {[%clk 0:02:59.9]} 5...
Nc6 {[%clk 0:03:00]} 6. Bf4 {[%clk 0:02:58.7]} 6... Bg4 {[%clk 0:02:59.4]} 7.
Qb3 {[%clk 0:02:57.8]} 7... Qd7 {[%clk 0:02:59.6]} 8. Nd2 {[%clk 0:02:54.2]}
8... e6 {[%clk 0:02:59.9]} 9. Ngf3 {[%clk 0:02:54]} 9... Bxf3 {[%clk 0:03:00.1]}
10. Nxf3 {[%clk 0:02:53.6]} 10... Bd6 {[%clk 0:03:00.8]} 11. Bxd6 {[%clk
0:02:49.6]} 11... Qxd6 {[%clk 0:03:01.7]} 12. O-O {[%clk 0:02:49.4]} 12... O-O
{[%clk 0:03:01.3]} 13. Rae1 {[%clk 0:02:48.8]} 13... Qc7 {[%clk 0:03:00.8]} 14.
Ne5 {[%clk 0:02:44]} 14... Nxe5 {[%clk 0:03:00.1]} 15. dxe5 {[%clk 0:02:44]}
15... Nd7 {[%clk 0:03:00.3]} 16. Qd1 {[%clk 0:02:23.6]} 16... Nxe5 {[%clk
0:02:42]} 17. Bxh7+ {[%clk 0:02:23.7]} 17... Kxh7 {[%clk 0:02:42]} 18. Qh5+
{[%clk 0:02:24.3]} 18... Kg8 {[%clk 0:02:42.6]} 19. Rxe5 {[%clk 0:02:22.8]}
19... g6 {[%clk 0:02:42.7]} 20. Qe2 {[%clk 0:02:19.3]} 20... Rac8 {[%clk
0:02:31.6]} 21. f4 {[%clk 0:02:11.6]} 21... Qc4 {[%clk 0:02:27.4]} 22. Qg4
{[%clk 0:02:02.6]} 22... Kg7 {[%clk 0:02:08.5]} 23. a3 {[%clk 0:02:02.5]} 23...
Rh8 {[%clk 0:01:30.4]} 24. Qd1 {[%clk 0:01:50.8]} 24... Qc5+ {[%clk 0:01:18.5]}
25. Kh1 {[%clk 0:01:41.4]} 25... b5 {[%clk 0:01:01.4]} 26. h3 {[%clk 0:01:36.4]}
26... a5 {[%clk 0:01:00.9]} 27. Qg4 {[%clk 0:01:26.4]} 27... Qc4 {[%clk
0:00:46.2]} 28. Rf3 {[%clk 0:01:19.3]} 28... b4 {[%clk 0:00:45.8]} 29. axb4
{[%clk 0:01:18.2]} 29... axb4 {[%clk 0:00:46.3]} 30. Rg3 {[%clk 0:01:06.2]}
30... Qf1+ {[%clk 0:00:34.3]} 31. Kh2 {[%clk 0:01:05.5]} 31... Rh6 {[%clk
0:00:32.5]} 32. f5 {[%clk 0:00:46.4]} 32... Rc4 {[%clk 0:00:27.6]} 33. Qg5
{[%clk 0:00:23.9]} 33... exf5 {[%clk 0:00:20.2]} 34. Rxf5 {[%clk 0:00:19.9]}
34... Qa1 {[%clk 0:00:02.2]} 35. Qf6+ {[%clk 0:00:19.5]} 1-0

[Event "*** Titled Tuesday Blitz"]
[Site "Chess.com"]
[Date "2021.03.30"]
[Round "9"]
[White "Bathory44"]
[Black "Isajevsky_Anton"]
[Result "1/2-1/2"]
[WhiteElo "2660"]
[BlackElo "2547"]
[TimeControl "180+1"]
[EndTime "11:46:55 PDT"]
[Termination "Game drawn by repetition"]

1. e4 {[%clk 0:03:00.9]} 1... c5 {[%clk 0:02:59.8]} 2. c3 {[%clk 0:03:00.7]}
2... Nf6 {[%clk 0:02:54.7]} 3. e5 {[%clk 0:03:00.9]} 3... Nd5 {[%clk 0:02:54.9]}
4. d4 {[%clk 0:03:01.4]} 4... cxd4 {[%clk 0:02:55.2]} 5. Nf3 {[%clk 0:03:02]}
5... d6 {[%clk 0:02:55.4]} 6. cxd4 {[%clk 0:03:01.6]} 6... e6 {[%clk 0:02:54.5]}
7. Bc4 {[%clk 0:03:01]} 7... Be7 {[%clk 0:02:51.5]} 8. O-O {[%clk 0:03:00.1]}
8... O-O {[%clk 0:02:51.1]} 9. exd6 {[%clk 0:02:55.8]} 9... Qxd6 {[%clk
0:02:49.6]} 10. Nc3 {[%clk 0:02:55.3]} 10... Nxc3 {[%clk 0:02:46.2]} 11. bxc3
{[%clk 0:02:55]} 11... Nc6 {[%clk 0:02:46.8]} 12. Re1 {[%clk 0:02:53.8]} 12...
b6 {[%clk 0:02:45.3]} 13. Bd3 {[%clk 0:02:52.2]} 13... Bb7 {[%clk 0:02:41.1]}
14. Ng5 {[%clk 0:02:52.6]} 14... h6 {[%clk 0:02:30.9]} 15. Ne4 {[%clk
0:02:46.1]} 15... Qd5 {[%clk 0:02:31.1]} 16. Qg4 {[%clk 0:02:45]} 16... f5
{[%clk 0:02:25.5]} 17. Qg6 {[%clk 0:02:45]} 17... Bh4 {[%clk 0:01:14.7]} 18.
Bxh6 {[%clk 0:02:35.3]} 18... Rf7 {[%clk 0:01:14]} 19. g3 {[%clk 0:02:00.7]}
19... Ne7 {[%clk 0:01:10.9]} 20. c4 {[%clk 0:01:06.2]} 20... Qxd4 {[%clk
0:00:50.6]} 21. Qxe6 {[%clk 0:00:58.1]} 21... Qxd3 {[%clk 0:00:50.5]} 22. Nd6
{[%clk 0:00:50.5]} 22... Rf8 {[%clk 0:00:45.9]} 23. Nxb7 {[%clk 0:00:16]} 23...
gxh6 {[%clk 0:00:45.4]} 24. Nd6 {[%clk 0:00:12.5]} 24... Bf6 {[%clk 0:00:35.8]}
25. Rad1 {[%clk 0:00:11.9]} 25... Qf3 {[%clk 0:00:35.5]} 26. Nxf7 {[%clk
0:00:11.4]} 26... Rxf7 {[%clk 0:00:35.5]} 27. Rd8+ {[%clk 0:00:11.9]} 27... Kg7
{[%clk 0:00:35.7]} 28. Rd7 {[%clk 0:00:12.5]} 28... h5 {[%clk 0:00:21.9]} 29.
Qd6 {[%clk 0:00:11]} 29... h4 {[%clk 0:00:12.7]} 30. Rexe7 {[%clk 0:00:11]}
30... Bxe7 {[%clk 0:00:12.9]} 31. Rxe7 {[%clk 0:00:11.1]} 31... h3 {[%clk
0:00:10.9]} 32. Qd4+ {[%clk 0:00:08.9]} 32... Kf8 {[%clk 0:00:08.9]} 33. Qd8+
{[%clk 0:00:08.1]} 33... Kg7 {[%clk 0:00:09.3]} 34. Qd4+ {[%clk 0:00:05.2]}
34... Kf8 {[%clk 0:00:09.3]} 35. Qd8+ {[%clk 0:00:05.1]} 35... Kg7 {[%clk
0:00:09.5]} 36. Qd4+ {[%clk 0:00:05.2]} 1/2-1/2

[Event "*** Titled Tuesday Blitz"]
[Site "Chess.com"]
[Date "2021.03.30"]
[Round "9"]
[White "ahmad_alkhatib11"]
[Black "aljado"]
[Result "0-1"]
[WhiteElo "2235"]
[BlackElo "2099"]
[TimeControl "180+1"]
[EndTime "11:46:56 PDT"]
[Termination "aljado won on time"]

1. Nf3 {[%clk 0:03:00.9]} 1... Nf6 {[%clk 0:02:58]} 2. g3 {[%clk 0:03:00.7]}
2... g6 {[%clk 0:02:57.8]} 3. b3 {[%clk 0:03:00.7]} 3... Bg7 {[%clk 0:02:57.4]}
4. Bb2 {[%clk 0:03:01.6]} 4... O-O {[%clk 0:02:57.1]} 5. Bg2 {[%clk 0:03:01.6]}
5... d5 {[%clk 0:02:56.7]} 6. c4 {[%clk 0:03:01.4]} 6... c6 {[%clk 0:02:56.1]}
7. O-O {[%clk 0:03:01]} 7... Bg4 {[%clk 0:02:53.4]} 8. d3 {[%clk 0:02:58.6]}
8... Nbd7 {[%clk 0:02:49.2]} 9. Nbd2 {[%clk 0:02:55.3]} 9... a5 {[%clk
0:02:46.1]} 10. a3 {[%clk 0:02:54.5]} 10... Qb6 {[%clk 0:02:37.4]} 11. h3 {[%clk
0:02:47.8]} 11... Bxf3 {[%clk 0:02:35.9]} 12. Nxf3 {[%clk 0:02:48.7]} 12... e6
{[%clk 0:02:35]} 13. Rb1 {[%clk 0:02:04.2]} 13... Rfd8 {[%clk 0:02:27.5]} 14. b4
{[%clk 0:01:46.3]} 14... axb4 {[%clk 0:02:24]} 15. axb4 {[%clk 0:01:47.2]} 15...
dxc4 {[%clk 0:02:20.7]} 16. dxc4 {[%clk 0:01:45.8]} 16... Ra2 {[%clk 0:01:57.4]}
17. c5 {[%clk 0:01:36.6]} 17... Qa6 {[%clk 0:01:45.4]} 18. Ne5 {[%clk
0:01:27.6]} 18... Qa8 {[%clk 0:01:25.4]} 19. Nxd7 {[%clk 0:01:23]} 19... Rxd7
{[%clk 0:01:20.6]} 20. Qb3 {[%clk 0:01:22.6]} 20... Rd2 {[%clk 0:01:05.9]} 21.
Rfd1 {[%clk 0:00:56.1]} 21... Rxd1+ {[%clk 0:00:49.1]} 22. Rxd1 {[%clk
0:00:54.2]} 22... Nd5 {[%clk 0:00:41.8]} 23. Bxg7 {[%clk 0:00:51.3]} 23... Kxg7
{[%clk 0:00:41.2]} 24. e4 {[%clk 0:00:47.8]} 24... Nf6 {[%clk 0:00:38]} 25. Qc3
{[%clk 0:00:26.3]} 25... Qa4 {[%clk 0:00:23.8]} 26. Rd7 {[%clk 0:00:17]} 26...
Rc2 {[%clk 0:00:18]} 27. Qe5 {[%clk 0:00:16.5]} 27... Qa2 {[%clk 0:00:14.2]} 28.
Qd4 {[%clk 0:00:10.7]} 28... Rc1+ {[%clk 0:00:11.3]} 29. Kh2 {[%clk 0:00:10.5]}
29... Rc2 {[%clk 0:00:10.2]} 30. Kg1 {[%clk 0:00:04.6]} 30... Rc1+ {[%clk
0:00:09.7]} 31. Kh2 {[%clk 0:00:04]} 31... Rc2 {[%clk 0:00:10.1]} 32. Rxb7
{[%clk 0:00:03.5]} 32... Rxf2 {[%clk 0:00:06.6]} 0-1

[Event "*** Titled Tuesday Blitz"]
[Site "Chess.com"]
[Date "2021.03.30"]
[Round "9"]
[White "Redzishchess"]
[Black "chessmadara"]
[Result "1-0"]
[WhiteElo "2348"]
[BlackElo "2195"]
[TimeControl "180+1"]
[EndTime "11:46:57 PDT"]
[Termination "Redzishchess won by resignation"]

1. e4 {[%clk 0:03:00.9]} 1... c5 {[%clk 0:03:00]} 2. Nf3 {[%clk 0:03:01]} 2...
d6 {[%clk 0:02:59.5]} 3. d4 {[%clk 0:03:01.3]} 3... cxd4 {[%clk 0:03:00.4]} 4.
Nxd4 {[%clk 0:03:02.2]} 4... Nf6 {[%clk 0:03:00.1]} 5. Nc3 {[%clk 0:03:02.7]}
5... g6 {[%clk 0:03:00.2]} 6. Be3 {[%clk 0:03:01.2]} 6... Bg7 {[%clk 0:03:00.1]}
7. f3 {[%clk 0:03:01.5]} 7... Nc6 {[%clk 0:02:59.5]} 8. Qd2 {[%clk 0:03:00.2]}
8... O-O {[%clk 0:02:57.7]} 9. Bc4 {[%clk 0:02:59.7]} 9... Bd7 {[%clk
0:02:53.9]} 10. O-O-O {[%clk 0:02:59.4]} 10... Rc8 {[%clk 0:02:47.4]} 11. Bb3
{[%clk 0:02:59]} 11... Na5 {[%clk 0:02:41.9]} 12. Bh6 {[%clk 0:02:37.2]} 12...
Nc4 {[%clk 0:02:12.7]} 13. Bxc4 {[%clk 0:02:36.3]} 13... Rxc4 {[%clk 0:02:13.6]}
14. Bxg7 {[%clk 0:02:37.1]} 14... Kxg7 {[%clk 0:02:14.5]} 15. h4 {[%clk
0:02:37.9]} 15... h5 {[%clk 0:01:49]} 16. g4 {[%clk 0:02:37.6]} 16... Qa5 {[%clk
0:01:48.1]} 17. gxh5 {[%clk 0:01:53]} 17... Nxh5 {[%clk 0:01:45.5]} 18. Rhg1
{[%clk 0:01:52.8]} 18... Rfc8 {[%clk 0:01:41.3]} 19. Rg5 {[%clk 0:01:52.7]}
19... R8c5 {[%clk 0:01:39.7]} 20. Nb3 {[%clk 0:01:53]} 20... Rxg5 {[%clk
0:01:28.2]} 21. Nxa5 {[%clk 0:01:53.3]} 21... Rxa5 {[%clk 0:01:29.1]} 22. Qe3
{[%clk 0:01:20.4]} 22... Be6 {[%clk 0:01:21.6]} 23. a3 {[%clk 0:01:15.8]} 23...
b5 {[%clk 0:01:20.5]} 24. Nd5 {[%clk 0:01:12.1]} 24... Bxd5 {[%clk 0:01:11.4]}
25. Rxd5 {[%clk 0:01:13]} 25... Nf6 {[%clk 0:01:06.9]} 26. Rg5 {[%clk 0:01:13]}
26... e5 {[%clk 0:01:01.4]} 27. c3 {[%clk 0:00:49]} 27... b4 {[%clk 0:00:48.1]}
28. axb4 {[%clk 0:00:48.5]} 28... Ra1+ {[%clk 0:00:48.3]} 29. Kc2 {[%clk
0:00:48.9]} 29... a5 {[%clk 0:00:48.9]} 30. b5 {[%clk 0:00:44.6]} 30... a4
{[%clk 0:00:48]} 31. Rg1 {[%clk 0:00:42.4]} 31... Rxg1 {[%clk 0:00:39.8]} 32.
Qxg1 {[%clk 0:00:43.3]} 32... d5 {[%clk 0:00:40.3]} 33. exd5 {[%clk 0:00:37.5]}
33... Nxd5 {[%clk 0:00:38.9]} 34. Qe1 {[%clk 0:00:29.1]} 34... e4 {[%clk
0:00:30.3]} 35. fxe4 {[%clk 0:00:26.2]} 35... Nb6 {[%clk 0:00:27.7]} 36. Qe3
{[%clk 0:00:18.3]} 36... Nd7 {[%clk 0:00:26.6]} 37. Qd3 {[%clk 0:00:14.4]} 37...
Rc7 {[%clk 0:00:24.9]} 38. Qd6 {[%clk 0:00:13.5]} 38... Rb7 {[%clk 0:00:24.2]}
39. Qd5 {[%clk 0:00:12.3]} 39... Rc7 {[%clk 0:00:19.7]} 40. c4 {[%clk
0:00:11.9]} 40... Nc5 {[%clk 0:00:15.8]} 41. Qe5+ {[%clk 0:00:11.8]} 1-0